bitfinex/quotes_BTCUSD_20260101
["timestamp","ask_amount","ask_price","bid_price","bid_amount"]
[1767282791698,0.04603757,88067.0,88062.0,0.01135563]
[1767282792508,0.04603757,88067.0,88061.0,0.01135576]
[1767282792932,0.04603757,88067.0,88059.0,0.01135602]
[1767282793469,0.04603757,88067.0,88060.0,0.01135589]
[1767282794304,0.04603757,88067.0,88059.0,0.01135602]
[1767282794945,0.04603757,88067.0,88060.0,0.01135589]
[1767282795147,0.04603757,88067.0,88061.0,0.01135576]
[1767282795347,0.04603757,88067.0,88062.0,0.01135563]
[1767282795765,0.04603757,88067.0,88063.0,0.0113555]
[1767282795965,0.04603757,88067.0,88062.0,0.01135563]
[1767282796210,0.02456445,88066.0,88061.0,0.01135576]
[1767282796362,0.02456445,88066.0,88062.0,0.01135563]
[1767282796913,0.02456445,88066.0,88060.0,0.01135589]
[1767282797112,0.04609362,88069.0,88061.0,0.01135576]
[1767282797270,0.02456452,88068.0,88061.0,0.01135576]
[1767282797654,0.02456452,88068.0,88060.0,0.01135589]
[1767282798016,0.02456452,88067.0,88061.0,0.01135576]
[1767282798212,0.02456458,88066.0,88061.0,0.01135576]
[1767282798418,0.04609362,88069.0,88062.0,0.01135563]
[1767282798617,0.02456469,88068.0,88061.0,0.01135576]
[1767282798968,0.02456469,88068.0,88060.0,0.01135589]
[1767282799171,0.02456469,88068.0,88062.0,0.06813356]
[1767282799570,0.02456469,88068.0,88062.0,0.01135563]
[1767282799991,0.02456469,88068.0,88063.0,0.0113555]
[1767282800378,0.02456469,88067.0,88063.0,0.0113555]
[1767282800964,0.02456469,88067.0,88062.0,0.01135563]
[1767282801170,0.02456469,88067.0,88063.0,0.0113555]
[1767282801376,0.02456469,88067.0,88061.0,0.01135576]
[1767282801742,0.02456469,88067.0,88063.0,0.0113555]
[1767282802342,0.07537587,88067.0,88063.0,0.0113555]
[1767282802604,0.02456469,88066.0,88063.0,0.0113555]
[1767282802943,0.02456469,88066.0,88062.0,0.01135563]
[1767282803349,5.605e-05,88069.0,88063.0,0.0113555]
[1767282803914,5.605e-05,88069.0,88062.0,0.01135563]
[1767282804251,5.605e-05,88069.0,88066.0,0.06813011]
[1767282804451,5.605e-05,88069.0,88066.0,0.01135512]
[1767282808408,0.0114,88075.0,88068.0,0.01135486]
[1767282808605,0.0114,88075.0,88066.0,0.01135512]
[1767282808606,0.01066228,88074.0,88066.0,0.01135512]
[1767282808807,0.06509714,88073.0,88067.0,0.01135499]
[1767282809028,0.01066228,88072.0,88068.0,0.01135486]
[1767282809231,0.01066228,88071.0,88068.0,0.01135486]
[1767282809431,0.05443486,88073.0,88068.0,0.01135486]
[1767282809773,0.01066174,88072.0,88066.0,0.01135512]
[1767282809910,0.01066174,88071.0,88068.0,0.01135486]
[1767282810113,0.05443486,88072.0,88068.0,0.01135486]
[1767282810519,0.05443486,88072.0,88067.0,0.01135499]
[1767282812114,0.05443486,88072.0,88068.0,0.01135486]
[1767282812312,0.05443486,88072.0,88067.0,0.01135499]
[1767282812534,0.05443486,88072.0,88068.0,0.01135486]
[1767282813091,0.05443486,88072.0,88067.0,0.01135499]
[1767282814045,0.05443486,88072.0,88068.0,0.01135486]
[1767282814603,0.05443486,88072.0,88069.0,0.01135473]
[1767282814942,4.803e-05,88075.0,88072.0,0.01135434]
[1767282815146,0.01144803,88075.0,88072.0,0.01135434]
[1767282816251,0.01144803,88075.0,88073.0,0.05677108]
[1767282817292,4.803e-05,88075.0,88073.0,0.05677108]
[1767282819843,4.803e-05,88075.0,88072.0,0.01135434]
[1767282820859,4.803e-05,88075.0,88071.0,0.01135447]
[1767282821178,0.000549,88072.0,88070.0,0.0113546]
[1767282821326,4.803e-05,88075.0,88071.0,0.01135447]
[1767282821915,4.803e-05,88075.0,88072.0,0.01135434]
[1767282823660,4.803e-05,88075.0,88071.0,0.01135447]
[1767282824404,4.803e-05,88075.0,88069.0,0.01135473]
[1767282824615,0.000549,88071.0,88070.0,0.0113546]
[1767282825014,4.803e-05,88075.0,88071.0,0.01135447]
[1767282825816,4.803e-05,88075.0,88070.0,0.0113546]
[1767282826427,4.803e-05,88075.0,88072.0,0.01135434]
[1767282826853,4.803e-05,88075.0,88073.0,0.05677108]
[1767282827565,4.803e-05,88075.0,88074.0,0.03723133]
[1767282830262,4.803e-05,88075.0,88073.0,0.05677108]
[1767282832287,4.803e-05,88075.0,88074.0,0.03972672]
[1767282833577,5.69e-06,88075.0,88074.0,0.03972672]
[1767282834278,0.00050044,88079.0,88076.0,0.01135383]
[1767282834680,0.00050044,88079.0,88077.0,0.0567685]
[1767282835814,1e-08,88079.0,88077.0,0.0567685]
[1767282837042,0.0002,88084.0,88081.0,0.01135318]
[1767282837249,0.000549,88081.0,88080.0,0.01135331]
[1767282837463,0.000549,88081.0,88078.0,0.01135357]
[1767282837786,0.0002,88084.0,88080.0,0.01135331]
[1767282838953,0.0002,88084.0,88081.0,0.01135318]
[1767282839157,0.0002,88084.0,88081.0,0.01080418]
[1767282840916,0.0002,88084.0,88081.0,0.01135318]
[1767282842359,0.0002,88084.0,88081.0,0.06811853]
[1767282842942,0.0002,88084.0,88082.0,0.05676468]
[1767282846623,1e-08,88084.0,88082.0,0.05676468]
[1767282848054,0.06033465,88092.0,88086.0,0.01135254]
[1767282848263,0.00019523,88089.0,88086.0,0.01135254]
[1767282848637,1e-08,88089.0,88088.0,0.05676142]
[1767282849647,1e-08,88089.0,88086.0,0.06811472]
[1767282850028,1e-08,88089.0,88088.0,0.05676142]
[1767282850896,1e-08,88089.0,88086.0,0.06811472]
[1767282852222,1e-08,88089.0,88086.0,0.01135254]
[1767282852789,1e-08,88089.0,88087.0,0.05676206]
[1767282852948,0.00055,88087.0,88086.0,0.01135254]
[1767282853356,1e-08,88089.0,88086.0,0.01135254]
[1767282854987,1e-08,88089.0,88083.0,0.06811732]
[1767282854988,0.00055,88086.0,88083.0,0.06811732]
[1767282855400,1e-08,88089.0,88083.0,0.06811732]
[1767282855945,1e-08,88089.0,88082.0,0.01135305]
[1767282856153,0.06033466,88089.0,88083.0,0.01080292]
[1767282856870,0.06033466,88089.0,88084.0,0.01135279]
[1767282857661,0.06033466,88089.0,88085.0,0.01135267]
[1767282858204,0.06033466,88089.0,88086.0,0.01135254]
[1767282858711,0.06033466,88089.0,88084.0,0.01135279]
[1767282859175,0.06033466,88089.0,88085.0,0.01135267]
[1767282859785,0.06033466,88089.0,88086.0,0.01135254]
[1767282860186,0.06033466,88089.0,88086.0,0.0681149]
[1767282860809,1e-08,88089.0,88086.0,0.0681149]
[1767282861010,1e-08,88089.0,88086.0,0.01135254]
[1767282861856,1e-08,88089.0,88085.0,0.01135267]
[1767282862086,1e-08,88089.0,88086.0,0.01135254]
[1767282862290,1e-08,88089.0,88084.0,0.01135279]
[1767282862431,1e-08,88089.0,88083.0,0.01135292]
[1767282863382,1e-08,88089.0,88084.0,0.01135279]
[1767282864106,1e-08,88089.0,88083.0,0.01135292]
[1767282865700,1e-08,88089.0,88082.0,0.01135305]
[1767282865904,1e-08,88089.0,88084.0,0.01135279]
[1767282866084,1e-08,88089.0,88082.0,0.01135305]
[1767282866401,1e-08,88089.0,88084.0,0.01135279]
[1767282866703,1e-08,88089.0,88078.0,0.0114]
[1767282867117,1e-08,88089.0,88078.0,0.02275357]
[1767282867523,1e-08,88089.0,88079.0,0.01135344]
[1767282867680,1e-08,88089.0,88078.0,0.02275357]
[1767282867886,1e-08,88089.0,88080.0,0.01135331]
[1767282868091,1e-08,88089.0,88079.0,0.01135344]
[1767282868274,1e-08,88089.0,88080.0,0.01135331]
[1767282868684,1e-08,88089.0,88081.0,0.01135318]
[1767282868883,1e-08,88089.0,88080.0,0.01135331]
[1767282869693,1e-08,88089.0,88081.0,0.01135318]
[1767282869895,1e-08,88089.0,88078.0,0.0114]
[1767282869896,0.0639423,88089.0,88078.0,0.0114]
[1767282870451,0.0639423,88089.0,88079.0,0.01135344]
[1767282870659,0.0639423,88089.0,88078.0,0.0114]
[1767282871067,0.0753423,88089.0,88078.0,0.02275357]
[1767282871747,0.0753423,88089.0,88078.0,0.0114]
[1767282872432,0.06394229,88087.0,88079.0,0.01135344]
[1767282872623,0.06394229,88087.0,88078.0,0.02275357]
[1767282873232,0.06394229,88087.0,88078.0,0.0114]
[1767282874078,0.06394229,88087.0,88079.0,0.01135344]
[1767282874831,0.06394229,88087.0,88078.0,0.02275357]
[1767282875228,0.06394229,88087.0,88079.0,0.01135344]
[1767282875405,0.06394229,88087.0,88080.0,0.01135331]
[1767282876189,0.06394229,88087.0,88081.0,0.01135318]
[1767282876399,0.06394229,88087.0,88080.0,0.01135331]
[1767282876892,0.06394229,88087.0,88081.0,0.01135318]
[1767282877114,0.06394229,88087.0,88080.0,0.01135331]
[1767282879267,0.06394229,88087.0,88081.0,0.01135318]
[1767282879982,0.06339329,88087.0,88080.0,0.01135331]
[1767282880132,0.06339329,88087.0,88082.0,0.01135305]
[1767282880972,0.06339329,88087.0,88081.0,0.01135318]
[1767282881470,1e-08,88089.0,88086.0,0.01135254]
[1767282882149,1e-08,88089.0,88086.0,0.06811468]
[1767282882534,1e-08,88089.0,88087.0,0.05676158]
[1767282883466,1e-08,88089.0,88086.0,0.01135254]
[1767282883893,1e-08,88089.0,88086.0,0.06811465]
[1767282886284,1e-08,88089.0,88086.0,0.01135254]
[1767282886525,1e-08,88089.0,88084.0,0.01135279]
[1767282886733,1e-08,88089.0,88085.0,0.01135267]
[1767282887767,1e-08,88089.0,88086.0,0.01135254]
[1767282888079,1e-08,88089.0,88085.0,0.01135267]
[1767282888654,1e-08,88089.0,88086.0,0.01135254]
[1767282888849,1e-08,88089.0,88085.0,0.01135267]
[1767282889052,1e-08,88089.0,88084.0,0.01135279]
[1767282889251,1e-08,88089.0,88085.0,0.01135267]
[1767282889502,1e-08,88089.0,88086.0,0.06811524]
[1767282889735,1e-08,88089.0,88085.0,0.01135267]
[1767282890061,1e-08,88089.0,88086.0,0.01135254]
[1767282890551,1e-08,88089.0,88084.0,0.01135279]
[1767282890750,1e-08,88089.0,88085.0,0.01135267]
[1767282891035,1e-08,88089.0,88086.0,0.01135254]
[1767282893040,1e-08,88089.0,88085.0,0.01135267]
[1767282893664,1e-08,88089.0,88086.0,0.01135254]
[1767282894820,1e-08,88089.0,88085.0,0.01135267]
[1767282898767,1e-08,88089.0,88084.0,0.01135279]
[1767282899117,1e-08,88089.0,88085.0,0.01135267]
[1767282899475,1e-08,88089.0,88084.0,0.01135279]
[1767282900028,1e-08,88089.0,88085.0,0.01135267]
[1767282900186,1e-08,88089.0,88082.0,0.05676528]
[1767282900187,1e-08,88089.0,88082.0,0.01135305]
[1767282900376,0.000549,88085.0,88083.0,0.01135292]
[1767282900570,0.000549,88085.0,88082.0,0.01135305]
[1767282900828,1e-08,88089.0,88086.0,0.01135254]
[1767282900972,1e-08,88089.0,88087.0,0.05676206]
[1767282929235,0.000549,88087.0,88084.0,0.05676339]
[1767282929358,1e-08,88089.0,88086.0,0.01135254]
[1767282929761,1e-08,88089.0,88080.0,0.0567661]
[1767282929962,0.000549,88082.0,88078.0,0.02275357]
[1767282930174,0.000549,88082.0,88079.0,0.01135344]
[1767282930373,0.000549,88082.0,88079.0,0.06812037]
[1767282930617,0.0694838,88089.0,88082.0,0.000549]
[1767282931312,0.0694838,88089.0,88080.0,0.01135331]
[1767282931657,0.0694838,88089.0,88081.0,0.01135318]
[1767282933042,0.0694838,88089.0,88078.0,0.02275357]
[1767282933245,0.0694838,88089.0,88079.0,0.01135344]
[1767282934809,0.0694838,88089.0,88078.0,0.0114]
[1767282936618,0.0694838,88089.0,88077.0,0.0113537]
[1767282936819,0.0694838,88089.0,88079.0,0.01135344]
[1767282937037,0.0694838,88089.0,88078.0,0.01135357]
[1767282937240,0.0694838,88089.0,88079.0,0.01135344]
[1767282937978,0.0694838,88089.0,88080.0,0.01135331]
[1767282938330,0.0694838,88089.0,88081.0,0.01135318]
[1767282938503,0.0689348,88089.0,88086.0,0.01135254]
[1767282938703,0.08084379,88094.0,88085.0,0.01135267]
[1767282938911,0.0245446,88093.0,88085.0,0.01135267]
[1767282939133,0.0245446,88093.0,88085.0,0.06811592]
[1767282939352,0.0245446,88093.0,88087.0,0.01135241]
[1767282940319,0.0359046,88093.0,88091.0,0.05675889]
[1767282940525,0.0245446,88092.0,88090.0,0.01135202]
[1767282940951,0.0245446,88092.0,88090.0,0.0681116]
[1767282941332,0.01136,88093.0,88090.0,0.0681116]
[1767282943101,0.01136,88093.0,88090.0,0.01135202]
[1767282943419,0.0001472,88098.0,88091.0,0.01135189]
[1767282943671,0.02201266,88097.0,88091.0,0.01135189]
[1767282943879,0.02454366,88096.0,88091.0,0.01135189]
[1767282944074,0.02454366,88096.0,88090.0,0.01135202]
[1767282944374,0.02454366,88096.0,88091.0,0.01135189]
[1767282944584,0.02454366,88096.0,88090.0,0.01135202]
[1767282945020,0.02454366,88096.0,88089.0,0.01135215]
[1767282945268,0.02454366,88096.0,88090.0,0.01135202]
[1767282945878,0.02454366,88096.0,88089.0,0.01135215]
[1767282946491,0.02454366,88096.0,88088.0,0.01135228]
[1767282948114,0.02454366,88096.0,88089.0,0.01135215]
[1767282948513,0.02454366,88096.0,88088.0,0.01135228]
[1767282949527,0.02454366,88096.0,88090.0,0.01135202]
[1767282949922,0.02454366,88096.0,88088.0,0.01135228]
[1767282950652,0.02454366,88096.0,88090.0,0.01135202]
[1767282950850,0.02454366,88096.0,88088.0,0.01135228]
[1767282951552,0.02454366,88096.0,88087.0,0.01135241]
[1767282951754,0.02454366,88096.0,88088.0,0.01135228]
[1767282951958,0.02454366,88096.0,88086.0,0.01135254]
[1767282952161,0.02454366,88096.0,88087.0,0.01135241]
[1767282952785,0.02454366,88096.0,88085.0,0.01135267]
[1767282952963,0.09402745,88096.0,88087.0,0.01135241]
[1767282953163,0.02454366,88095.0,88087.0,0.01135241]
[1767282953382,0.01188834,88095.0,88088.0,0.0681137]
[1767282953581,0.0001472,88098.0,88089.0,0.01135215]
[1767282953785,0.01065403,88097.0,88090.0,0.01135202]
[1767282954051,0.0001472,88098.0,88091.0,0.01135189]
[1767282954216,0.01065411,88097.0,88090.0,0.01135202]
[1767282954438,0.0001472,88098.0,88090.0,0.01135202]
[1767282954722,0.01065411,88097.0,88090.0,0.01135202]
[1767282954916,0.0001472,88098.0,88091.0,0.01135189]
[1767282955079,0.01065411,88097.0,88091.0,0.01135189]
[1767282955285,0.0001472,88098.0,88091.0,0.01135189]
[1767282955479,0.08200406,88097.0,88092.0,0.01135176]
[1767282955693,0.07134982,88097.0,88090.0,0.01135202]
[1767282956086,0.07134982,88097.0,88088.0,0.06811313]
[1767282956087,0.07134982,88097.0,88088.0,0.01135228]
[1767282956516,0.07134982,88097.0,88089.0,0.01135215]
[1767282957108,0.07134982,88097.0,88088.0,0.01135228]
[1767282957962,0.06634982,88097.0,88088.0,0.01135228]
[1767282958362,0.06634982,88097.0,88089.0,0.01135215]
[1767282958947,0.06634982,88097.0,88090.0,0.01135202]
[1767282959177,0.06634982,88097.0,88088.0,0.01135228]
[1767282959587,0.06634982,88097.0,88090.0,0.01135202]
[1767282960139,0.06634982,88097.0,88088.0,0.01135228]
[1767282960351,0.06634982,88097.0,88087.0,0.01135241]
[1767282960521,0.06634982,88097.0,88088.0,0.01135228]
[1767282961791,0.06634982,88097.0,88086.0,0.06811509]
[1767282961991,0.06634982,88097.0,88083.0,0.06811746]
[1767282962230,0.06634982,88097.0,88087.0,0.01135241]
[1767282962707,0.06634982,88097.0,88086.0,0.01135254]
[1767282962921,0.06634982,88097.0,88087.0,0.01135241]
[1767282963512,0.06634982,88097.0,88085.0,0.07947539]
[1767282963513,0.06634982,88097.0,88085.0,0.01136]
[1767282963710,0.000549,88087.0,88085.0,0.01135267]
[1767282963895,0.06634982,88097.0,88085.0,0.01135267]
[1767282964096,0.06634982,88097.0,88084.0,0.01135279]
[1767282964310,0.06634982,88097.0,88085.0,0.01135267]
[1767282964745,0.06634982,88097.0,88084.0,0.01135279]
[1767282964945,0.06634982,88097.0,88085.0,0.01135267]
[1767282965184,0.06634982,88097.0,88086.0,0.01135254]
[1767282965522,0.07134982,88095.0,88084.0,0.01135279]
[1767282965727,0.09589947,88094.0,88085.0,0.01135267]
[1767282966045,0.07134982,88094.0,88085.0,0.01135267]
[1767282966204,0.07134982,88094.0,88084.0,0.01135279]
[1767282966410,0.07134982,88097.0,88085.0,0.01135267]
[1767282966648,0.07134982,88095.0,88085.0,0.01135267]
[1767282966895,0.02455131,88094.0,88082.0,0.02271305]
[1767282967049,0.07134982,88092.0,88082.0,0.02271305]
[1767282967246,0.02455131,88091.0,88083.0,0.01135292]
[1767282967567,0.02455131,88091.0,88084.0,0.01135279]
[1767282967727,0.02455131,88091.0,88083.0,0.01135292]
[1767282968945,0.02455131,88091.0,88084.0,0.01135279]
[1767282969329,0.02455131,88091.0,88083.0,0.01135292]
[1767282969988,0.02455131,88091.0,88084.0,0.01135279]
[1767282970350,0.02455131,88091.0,88083.0,0.01135292]
[1767282970783,0.07134982,88090.0,88081.0,0.02267045]
[1767282970951,0.07134982,88090.0,88081.0,0.01135318]
[1767282971366,0.07134982,88090.0,88080.0,0.01135331]
[1767282971572,0.07134982,88090.0,88081.0,0.01135318]
[1767282971852,0.07134982,88090.0,88082.0,0.01135305]
[1767282972053,0.07134982,88090.0,88081.0,0.01135318]
[1767282972685,0.07134982,88090.0,88082.0,0.01135305]
[1767282973069,0.07134982,88090.0,88083.0,0.01135292]
[1767282973278,0.07134982,88090.0,88082.0,0.01135305]
[1767282973509,0.07134982,88090.0,88081.0,0.01135318]
[1767282974598,0.07134982,88090.0,88082.0,0.01135305]
[1767282975285,0.07134982,88090.0,88081.0,0.01135318]
[1767282975498,0.07134982,88090.0,88082.0,0.01135305]
[1767282980032,0.07134982,88090.0,88080.0,0.02270662]
[1767282980210,0.07134982,88090.0,88081.0,0.01135318]
[1767282980841,0.07134982,88090.0,88082.0,0.01135305]
[1767282981034,0.07134982,88090.0,88081.0,0.01135318]
[1767282981384,0.07134982,88090.0,88082.0,0.01135305]
[1767282982215,0.07134982,88090.0,88081.0,0.01135318]
[1767282982617,0.07134982,88090.0,88082.0,0.01135305]
[1767282982817,0.07134982,88090.0,88080.0,0.02270662]
[1767282983017,0.07134982,88090.0,88082.0,0.01135305]
[1767282983470,0.07134982,88090.0,88081.0,0.01135318]
[1767282983658,0.07134982,88090.0,88080.0,0.02270662]
[1767282983842,0.07134982,88090.0,88081.0,0.01135318]
[1767282984225,0.07134982,88090.0,88080.0,0.01135331]
[1767282984876,0.07134982,88090.0,88081.0,0.01135318]
[1767282985075,0.07134982,88090.0,88080.0,0.02270662]
[1767282985234,0.07134982,88090.0,88082.0,0.01135305]
[1767282985435,0.07134982,88090.0,88080.0,0.02270662]
[1767282985944,0.07134982,88090.0,88080.0,0.01135331]
[1767282986152,0.07134982,88090.0,88080.0,0.02270662]
[1767282986374,0.07134982,88090.0,88081.0,0.01131059]
[1767282986733,0.07134982,88090.0,88080.0,0.01135331]
[1767282987380,0.07134982,88090.0,88079.0,0.02271344]
[1767282987583,0.07134982,88090.0,88080.0,0.01135331]
[1767282987780,0.07134982,88090.0,88079.0,0.01136]
[1767282987958,0.07134982,88090.0,88079.0,0.01135344]
[1767282988965,0.07134982,88090.0,88080.0,0.01135331]
[1767282989160,0.07134982,88090.0,88081.0,0.01135318]
[1767282989437,0.07134982,88090.0,88082.0,0.01135305]
[1767282990398,0.07134982,88090.0,88081.0,0.01135318]
[1767282990587,0.07134982,88090.0,88082.0,0.01135305]
[1767282990783,0.07134982,88090.0,88081.0,0.01135318]
[1767282990988,0.07134982,88090.0,88082.0,0.01135305]
[1767282991488,0.07134982,88090.0,88082.0,0.01140108]
[1767282991682,0.07134982,88090.0,88082.0,4.803e-05]
[1767282993129,0.07134982,88090.0,88082.0,0.01140108]
[1767282993354,0.02455575,88089.0,88082.0,4.803e-05]
[1767282994320,0.07134982,88090.0,88082.0,4.803e-05]
[1767282995419,0.02455858,88089.0,88082.0,4.803e-05]
[1767282997190,0.02455858,88089.0,88082.0,0.01140108]
[1767282997812,0.02455858,88089.0,88082.0,4.803e-05]
[1767282998267,0.02455858,88089.0,88082.0,0.01140108]
[1767282998427,0.02455858,88089.0,88082.0,4.803e-05]
[1767283000941,0.02455858,88089.0,88082.0,5.44e-06]
[1767283001131,4.256e-05,88082.0,88076.0,0.00963274]
[1767283001678,0.07702509,88083.0,88076.0,0.00963274]
[1767283001679,0.07702509,88083.0,88076.0,0.02098657]
[1767283001847,0.07702509,88083.0,88077.0,0.0113537]
[1767283002238,0.07702509,88083.0,88075.0,0.01135395]
[1767283003779,0.07702509,88083.0,88074.0,0.01135408]
[1767283005522,0.07702509,88083.0,88075.0,0.01135395]
[1767283005879,0.07702509,88083.0,88076.0,0.01135383]
[1767283006102,0.07702509,88083.0,88075.0,0.01135395]
[1767283006283,0.07702509,88083.0,88074.0,0.01135408]
[1767283006482,0.07702509,88083.0,88073.0,0.04544626]
[1767283006886,0.07702509,88083.0,88073.0,0.03409205]
[1767283007219,0.07702509,88083.0,88074.0,0.01135408]
[1767283007402,0.07702509,88083.0,88075.0,0.01135395]
[1767283007600,0.07702509,88083.0,88074.0,0.01135408]
[1767283009882,0.07702509,88083.0,88075.0,0.01135395]
[1767283010181,0.07702509,88083.0,88074.0,0.01135408]
[1767283010378,0.07702509,88083.0,88073.0,0.04544626]
[1767283011151,0.07702509,88083.0,88071.0,0.01135447]
[1767283011350,0.07702509,88083.0,88072.0,0.01135434]
[1767283012454,0.07702509,88083.0,88073.0,0.01135421]
[1767283012860,0.000544,88073.0,88066.0,0.034096]
[1767283013059,0.000544,88073.0,88066.0,0.04545112]
[1767283013407,0.01136,88078.0,88066.0,0.01135512]
[1767283013804,0.01136,88078.0,88064.0,0.0681317]
[1767283013805,0.08486987,88078.0,88064.0,0.01135537]
[1767283014006,0.08486987,88078.0,88065.0,0.01135524]
[1767283014662,0.08486987,88078.0,88066.0,0.01135512]
[1767283015042,0.08486987,88078.0,88067.0,0.01150219]
[1767283015383,0.08486987,88078.0,88067.0,0.0001472]
[1767283015580,0.08486987,88078.0,88067.0,0.01150219]
[1767283016044,0.08486987,88078.0,88068.0,0.01135486]
[1767283016195,0.08486987,88078.0,88067.0,0.0001472]
[1767283018018,0.08486987,88078.0,88067.0,0.01150219]
[1767283018250,0.08486987,88078.0,88068.0,0.01135486]
[1767283018764,0.08486987,88078.0,88069.0,0.01135473]
[1767283019590,0.01136,88078.0,88071.0,0.01135447]
[1767283019800,0.01136,88078.0,88073.0,0.01135421]
[1767283019999,0.01136,88078.0,88072.0,0.01135434]
[1767283020343,0.01136,88078.0,88073.0,0.01135421]
[1767283020547,0.01136,88078.0,88075.0,0.01135395]
[1767283021565,0.01136,88078.0,88074.0,0.01135408]
[1767283021805,0.01136,88078.0,88073.0,0.01135421]
[1767283021930,0.01136,88078.0,88072.0,0.01135434]
[1767283022331,0.01136,88078.0,88073.0,0.01135421]
[1767283022579,0.01136,88078.0,88072.0,0.01135434]
[1767283022741,0.01136,88078.0,88073.0,0.01135421]
[1767283022939,0.01136,88078.0,88071.0,0.01135447]
[1767283023144,0.01136,88078.0,88070.0,0.0113546]
[1767283023400,0.01136,88078.0,88071.0,0.01135447]
[1767283023563,0.01136,88078.0,88072.0,0.01135434]
[1767283023763,0.01136,88078.0,88073.0,0.01135421]
[1767283023970,0.01136,88078.0,88075.0,0.01135395]
[1767283024167,0.01136,88078.0,88073.0,0.01135421]
[1767283024348,0.01136,88078.0,88072.0,0.01135434]
[1767283024548,0.07350987,88083.0,88074.0,0.01135408]
[1767283024731,0.03589426,88082.0,88073.0,0.01135421]
[1767283024938,0.01136,88082.0,88073.0,0.01135421]
[1767283025658,0.01136,88082.0,88074.0,0.01135408]
[1767283026086,0.01136,88082.0,88075.0,0.01135395]
[1767283026717,0.01136,88082.0,88074.0,0.01135408]
[1767283026952,0.01136,88082.0,88075.0,0.01135395]
[1767283027099,0.07350987,88090.0,88080.0,0.01135331]
[1767283027311,0.02453332,88089.0,88080.0,0.01135331]
[1767283027524,0.02453332,88089.0,88081.0,0.01135318]
[1767283027525,0.01136,88088.0,88081.0,0.01135318]
[1767283027721,0.02453332,88087.0,88081.0,0.01135318]
[1767283027921,0.02453332,88087.0,88082.0,0.01135305]
[1767283028124,0.02453332,88087.0,88081.0,0.01135318]
[1767283028370,0.02453332,88087.0,88083.0,0.01135292]
[1767283028489,0.02453332,88087.0,88081.0,0.01135318]
[1767283028690,0.02453332,88087.0,88082.0,0.01135305]
[1767283029103,0.02453332,88087.0,88080.0,0.01135331]
[1767283029303,0.02453332,88087.0,88077.0,0.0113537]
[1767283029660,0.02453332,88087.0,88079.0,0.01135344]
[1767283029897,0.02453332,88087.0,88081.0,0.01135318]
[1767283030100,0.01136,88088.0,88081.0,0.01135318]
[1767283030211,0.02453697,88087.0,88081.0,0.01135318]
[1767283031073,0.02453697,88087.0,88080.0,0.01135331]
[1767283031275,0.02453697,88087.0,88079.0,0.01135344]
[1767283031441,0.02453697,88087.0,88080.0,0.01135331]
[1767283032171,0.02453697,88087.0,88079.0,0.01135344]
[1767283032621,0.02453697,88087.0,88080.0,0.01135331]
[1767283032812,0.02453697,88087.0,88078.0,0.01135357]
[1767283033021,0.02453697,88087.0,88076.0,0.13134786]
[1767283033203,0.02453697,88087.0,88078.0,0.01135357]
[1767283033347,0.02453697,88087.0,88077.0,0.0113537]
[1767283033565,0.02453697,88087.0,88076.0,0.08593285]
[1767283033781,0.02453697,88087.0,88072.0,0.05677173]
[1767283033980,0.02453697,88087.0,88077.0,0.0113537]
[1767283034406,0.02453697,88087.0,88076.0,0.01135383]
[1767283034790,0.09804684,88087.0,88076.0,0.01135383]
[1767283034992,0.09804684,88087.0,88075.0,0.06812365]
[1767283034993,0.02453697,88086.0,88075.0,0.01135395]
[1767283035190,0.02453697,88086.0,88077.0,0.0567685]
[1767283035389,0.02453697,88086.0,88077.0,0.0681222]
[1767283035693,0.02453697,88086.0,88076.0,0.01135383]
[1767283035891,0.02453697,88086.0,88077.0,0.0113537]
[1767283036130,0.02453697,88086.0,88078.0,0.01135357]
[1767283036510,0.02453697,88086.0,88076.0,0.01135383]
[1767283036720,0.02453697,88086.0,88077.0,0.0113537]
[1767283036923,0.02453697,88086.0,88080.0,0.01135331]
[1767283037124,0.01136,88087.0,88080.0,0.06077705]
[1767283037685,0.01136,88087.0,88080.0,0.07213036]
[1767283038222,0.01136,88087.0,88080.0,0.06077705]
[1767283038448,0.01136,88087.0,88080.0,0.07213036]
[1767283038667,0.01136,88087.0,88080.0,0.06077705]
[1767283038998,0.01136,88087.0,88080.0,0.07213036]
[1767283039127,0.01136,88087.0,88081.0,0.01135318]
[1767283039323,0.01136,88087.0,88080.0,0.07213036]
[1767283039998,0.01136,88087.0,88081.0,0.01135318]
[1767283040384,0.01136,88087.0,88082.0,0.01135305]
[1767283041911,0.0245425,88086.0,88080.0,0.01135331]
[1767283042209,0.0245425,88086.0,88081.0,0.01135318]
[1767283042382,0.0245425,88086.0,88082.0,0.01135305]
[1767283042772,0.0245425,88086.0,88083.0,0.01135292]
[1767283043197,0.0245425,88086.0,88082.0,0.01135305]
[1767283043787,0.0245425,88086.0,88083.0,0.01135292]
[1767283044008,0.0245425,88086.0,88082.0,0.01135305]
[1767283044192,0.0245425,88086.0,88081.0,0.01135318]
[1767283044392,0.0245425,88086.0,88082.0,0.01135305]
[1767283044638,0.0245425,88086.0,88083.0,0.01135292]
[1767283044974,0.0245425,88086.0,88082.0,0.01135305]
[1767283045201,0.0245425,88086.0,88083.0,0.01135292]
[1767283045610,0.0171557,88086.0,88083.0,0.01135292]
[1767283045972,0.01136,88091.0,88089.0,0.01135215]
[1767283046172,0.07501057,88098.0,88089.0,0.01135215]
[1767283046313,0.02201223,88097.0,88088.0,0.45458224]
[1767283046508,0.01065223,88096.0,88089.0,0.01135215]
[1767283046730,0.01065223,88095.0,88090.0,0.01135202]
[1767283046935,0.01136,88097.0,88090.0,0.01135202]
[1767283047157,0.01065118,88096.0,88090.0,0.01135202]
[1767283047368,0.01065118,88095.0,88090.0,0.01135202]
[1767283047534,0.01136,88097.0,88089.0,0.01135215]
[1767283047738,0.01065055,88096.0,88089.0,0.01135215]
[1767283047935,0.01065055,88095.0,88089.0,0.01135215]
[1767283048143,0.01136,88097.0,88089.0,0.01135215]
[1767283048144,0.01136,88097.0,88090.0,0.01135202]
[1767283048382,0.01065077,88096.0,88090.0,0.01135202]
[1767283048606,0.01136,88097.0,88089.0,0.01135215]
[1767283048720,0.01065011,88096.0,88086.0,0.01135254]
[1767283048927,0.000544,88089.0,88086.0,0.01135254]
[1767283049334,0.01136,88097.0,88088.0,0.01135228]
[1767283049582,0.01064986,88096.0,88086.0,0.01135254]
[1767283049778,0.01136,88097.0,88086.0,0.01135254]
[1767283049980,0.01064986,88096.0,88086.0,0.01135254]
[1767283050206,0.01136,88097.0,88086.0,0.01135254]
[1767283050413,0.01064986,88096.0,88084.0,0.01135279]
[1767283050634,0.08622337,88097.0,88084.0,0.01135279]
[1767283050863,0.01064943,88096.0,88086.0,0.05676266]
[1767283051065,0.08622337,88097.0,88084.0,0.06811617]
[1767283051269,0.01064943,88096.0,88088.0,0.01135228]
[1767283051479,0.08622337,88097.0,88088.0,0.01135228]
[1767283051654,0.01064942,88096.0,88087.0,0.01135241]
[1767283051884,0.08622337,88097.0,88087.0,0.01135241]
[1767283052066,0.01064942,88096.0,88087.0,0.01135241]